Cogmind - Beta 13 @@@ ROGUE MODE // 2024.06.24 @ 01:38:01 Player: Kinga Result: Self-destructed Performance ------------- Evolutions (7) 3500 Regions Visited (18) 3600 Robots Destroyed (114) 570 Value Destroyed (3383) 3383 Prototype IDs (32) 640 Alien Tech Used (0) 0 Bonus (182) 182 TOTAL SCORE: 11875 Bonus ------- High Alert Combat Kills 182 Cogmind --------- Core Integrity 4/1300 Matter 6/300 Energy 99/100 System Corruption 0% Temperature Cool (0) Movement Core (50) Location -3/Research Parts ------- > --- POWER (2) -------- (None) > --- PROPULSION (6) --- (None) > --- UTILITY (11) ----- (None) > --- WEAPON (2) ------- (None) > --- INVENTORY (5) ---- Antimatter Reactor Light Quantum Reactor Advanced Heat Sink Ionic Axe Peak State ------------ > --- POWER ------------ Light Nuclear Core > --- PROPULSION ------- Cooled Cesium-ion Thruster Field Propulsion Drive Nuclear Pulse Array > --- UTILITY ---------- Medium Storage Unit Gravity Neutralizer Enhanced Optical Array Enhanced Optical Array Advanced Target Analyzer Armor Integrity Analyzer Layered Light Armor Plating Advanced Hacking Suite Improved System Shield > --- WEAPON ----------- Precision Rocket Launcher Ionic Axe > --- INVENTORY -------- Advanced Weight Redist. System Stasis Canceller Makeshift Transmission Jammer Phase Shifter Phase Shifter Hypervelocity Coil Gun Hypervelocity Coil Gun Heavy Rocket Launcher Improved Plasma Cutter Kinetic Spear [Rating: 88] Favorites ----------- Power Cooled Ion Engine Engine Cooled Ion Engine Power Core Micro Nuclear Core Propulsion Armored Treads Treads Armored Treads Leg Improved Carbon-fiber Leg Hover Unit Improved Gyrokinetic Inverter Flight Unit VTOL Module Utility Machine Analyzer Device Cooling System Storage Huge Storage Unit Processor Machine Analyzer Hackware Hacking Suite Protection Medium Armor Plating Weapon Heavy Ion Cannon Energy Gun Precision Beam Rifle Energy Cannon Heavy Ion Cannon Ballistic Gun Enhanced Autogun Launcher Precision Rocket Launcher Special Weapon Improved Plasma Cutter Slashing Weapon Ionic Axe Piercing Weapon Kinetic Spear Build | -11 -10 -10 -9 -8 -8 -7 -7 -7 -6 -5 -5 -5 -5 -4 -4 -4 -4 -3 ------- Run | Yrd Mat Min Mat Mat Sto Fac Was Fac Fac Fac Upp Upp Zhi Pro Fac Was Fac Res Slots Evolved 14 | . . . 2 2 . 2 . . 2 2 . . . . 2 . . 2 Power 1 | . . . . . . . . . . . . . . . 1 . . . Propulsion 4 | . . . . . . 2 . . 1 . . . . . 1 . . . Utility 9 | . . . 2 2 . . . . 1 2 . . . . . . . 2 Weapon . | . . . . . . . . . . . . . . . . . . . Parts Attached 156 | 6 2 . 8 39 15 11 2 12 18 17 3 2 . 11 6 1 . 3 Power 16 | 1 . . . 3 1 1 . 1 3 4 1 . . 1 . . . . Engine 7 | 1 . . . 3 . 1 . . . . 1 . . 1 . . . . Core 9 | . . . . . 1 . . 1 3 4 . . . . . . . . Reactor . | . . . . . . . . . . . . . . . . . . . Propulsion 33 | 2 . . 4 8 5 3 . 4 3 2 . . . 1 1 . . . Treads 14 | 2 . . 2 6 4 . . . . . . . . . . . . . Leg 2 | . . . . 2 . . . . . . . . . . . . . . Wheel . | . . . . . . . . . . . . . . . . . . . Hover 2 | . . . . . 1 . . . . . . . . . 1 . . . Flight 15 | . . . 2 . . 3 . 4 3 2 . . . 1 . . . . Utility 61 | 1 1 . 2 15 5 5 2 4 10 6 2 2 . 3 3 . . . Device 14 | . . . . 2 1 . 1 3 2 1 . 2 . 1 1 . . . Storage 7 | 1 1 . . 2 . 1 . . 1 . . . . . 1 . . . Processor 18 | . . . 1 6 1 . . 1 4 1 2 . . 2 . . . . Hackware 13 | . . . . 1 . 4 1 . 3 3 . . . . 1 . . . Protection 9 | . . . 1 4 3 . . . . 1 . . . . . . . . Artifact . | . . . . . . . . . . . . . . . . . . . Weapon 46 | 2 1 . 2 13 4 2 . 3 2 5 . . . 6 2 1 . 3 Energy Gun 6 | 2 . . . 2 . . . 1 . 1 . . . . . . . . Energy Cannon 11 | . . . . 7 3 . . . 1 . . . . . . . . . Ballistic Gun 11 | . 1 . 1 2 1 . . 1 . . . . . 4 . 1 . . Ballistic Cannon . | . . . . . . . . . . . . . . . . . . . Launcher 7 | . . . 1 2 . . . 1 . 2 . . . 1 . . . . Special Weapon 1 | . . . . . . . . . . 1 . . . . . . . . Impact Weapon . | . . . . . . . . . . . . . . . . . . . Slashing Weapon 6 | . . . . . . 2 . . 1 1 . . . 1 1 . . . Piercing Weapon 4 | . . . . . . . . . . . . . . . 1 . . 3 Special Melee Weapon . | . . . . . . . . . . . . . . . . . . . Unidentified Prototypes 17 | . . . . 5 3 1 1 1 2 3 . . . . 1 . . . Parts Lost 59 | . 2 . 4 5 7 1 1 4 9 8 5 . . 9 1 3 . . Power 11 | . . . 1 1 1 . . . 3 2 1 . . 2 . . . . Propulsion 16 | . . . 2 2 1 1 . 1 3 2 1 . . 3 . . . . Utility 23 | . . . . 2 3 . 1 2 3 2 3 . . 4 1 2 . . Weapon 9 | . 2 . 1 . 2 . . 1 . 2 . . . . . 1 . . Highest Loss Streak 5 | . 1 . 3 2 5 1 1 4 4 5 3 . . 5 1 3 . . To Critical Strikes . | . . . . . . . . . . . . . . . . . . . Average Slot Usage (%) 84 | . 85 71 34 97 98 60 42 62 77 79 78 76 . 55 43 26 10 4 Engine 4 | . 14 14 4 8 . . . . . . 1 5 . 3 . . . . Core 3 | . . . . . 8 . . 5 5 4 3 . . . . . . . Treads 12 | . 28 28 12 16 17 . . . . . . . . . . . . . Flight 3 | . . . 6 . . 10 3 17 18 14 14 11 . 7 . . . . Device 8 | . . . . 4 16 . . 12 11 5 5 17 . 5 1 1 . . Storage 7 | . 14 14 4 8 9 7 3 . 1 5 5 5 . 4 1 1 . . Processor 16 | . . . . 19 18 7 3 1 16 5 18 17 . 17 23 11 5 1 Hackware 6 | . . . . 4 . 28 30 17 12 28 12 11 . 11 11 8 5 1 Protection 8 | . . . . 14 8 . . . . 1 3 . . . . . . . Energy Cannon 7 | . . . . 11 12 . . . . . . . . . . . . . Ballistic Gun 4 | . 2 14 4 6 5 . . 4 . . . . . . . . . . Naked Turns 48 | . . . . . . . . . . . . . . . . . . 48 Heaviest Build 136 | 12 21 14 14 136 133 12 10 12 23 31 31 30 30 30 17 11 . . Greatest Support 40 | 40 40 40 40 40 40 10 5 16 34 31 38 31 31 31 12 12 3 3 Greatest Overweight (x) 35 | . . . 4 3 35 2 1 1 . . . . . 3 1 . . . Average Overweight (x) . | . . . . 1 2 . . . . . . . . . . . . . Largest Inventory Capacity 25 | 8 10 10 10 25 25 25 10 5 10 10 10 10 10 10 10 10 5 5 Average Capacity 18 | 7 8 10 7 22 25 11 7 5 6 10 10 10 10 9 6 6 5 5 Most Carried 25 | 4 4 3 5 25 25 24 10 5 10 10 10 10 10 10 5 5 5 5 Average Carried 14 | 1 3 3 4 15 23 10 7 3 5 6 9 8 10 9 4 4 4 4 Final Capacity 25 | 8 10 10 5 25 25 10 5 5 10 10 10 10 10 5 10 5 5 5 Final Carried 25 | 4 3 3 5 23 25 10 5 4 9 9 10 10 10 5 2 4 5 4 Class Distribution -------------------- 74% | Mutant 16% | Hacker-Mutant 4% | Hacker-Sprinter 3% | Scavenger-Sprinter Dominant Class ---------------- Mutant | -10/Materials Mutant | -10/Mines Mutant | -9/Materials Mutant | -8/Materials Mutant | -8/Storage Hacker-Mutant | -7/Factory Hacker-Mutant | -7/Waste Scavenger-Sprinter | -7/Factory Hacker-Sprinter | -6/Factory Wizard-Sprinter | -5/Factory Hacker-Mutant | -5/Upper Caves Hacker-Mutant | -5/Upper Caves Hacker-Mutant | -5/Zhirov Hacker-Mutant | -4/Proximity Caves Hacker-Mutant | -4/Factory Mutant | -4/Waste Mutant | -4/Factory Mutant | -3/Research Resources | -11 -10 -10 -9 -8 -8 -7 -7 -7 -6 -5 -5 -5 -5 -4 -4 -4 -4 -3 ----------- Run | Yrd Mat Min Mat Mat Sto Fac Was Fac Fac Fac Upp Upp Zhi Pro Fac Was Fac Res Matter Collected 1974 | 173 87 . . 755 256 68 . 178 103 102 111 . . 15 90 . . 36 Remotely 230 | . . . . . . . . 127 103 . . . . . . . . . Salvage Created 4493 | . 180 . . 1927 1789 68 . 106 82 40 161 . . 66 74 . . . Parts 238 | . 10 . . 98 100 2 . 7 3 2 6 . . 7 3 . . . Haulers Intercepted 11 | . . . . 5 6 . . . . . . . . . . . . . Recyclers Shooed 2 | . . . . 2 . . . . . . . . . . . . . . Parts Field Recycled . | . . . . . . . . . . . . . . . . . . . Retrieved Matter . | . . . . . . . . . . . . . . . . . . . Parts Self-Destructed 15 | . . . . . . . . . . . 6 . . 9 . . . . Prevented 1 | . . . . . . . . . . . . . . 1 . . . . Kills | -11 -10 -10 -9 -8 -8 -7 -7 -7 -6 -5 -5 -5 -5 -4 -4 -4 -4 -3 ------- Run | Yrd Mat Min Mat Mat Sto Fac Was Fac Fac Fac Upp Upp Zhi Pro Fac Was Fac Res Combat Hostiles Destroyed 84 | . 5 . . 31 28 1 . 4 3 . 5 . . 6 1 . . . Melee 2 | . . . . . . 1 . . . . . . . . 1 . . . Guns 22 | . 3 . . 10 3 . . 3 2 . . . . 1 . . . . Cannons 44 | . . . . 20 24 . . . . . . . . . . . . . AOE 14 | . 2 . . 1 . . . 1 . . 5 . . 5 . . . . Classes Destroyed 11 | . 3 . . 7 1 . . . . . . . . . . . . . Worker 4 | . . . . 4 . . . . . . . . . . . . . . Builder 2 | . . . . . 2 . . . . . . . . . . . . . Hauler 11 | . . . . 5 6 . . . . . . . . . . . . . Recycler 5 | . 1 . . 3 1 . . . . . . . . . . . . . Operator 4 | . . . . 2 2 . . . . . . . . . . . . . Watcher 4 | . . . . 1 2 . . . . 1 . . . . . . . . Swarmer 31 | . 3 . . 10 4 . . 4 3 . 1 . . 6 . . . . Grunt 34 | . 2 . . 13 14 . . . . . 4 . . . 1 . . . Duelist 1 | . . . . 1 . . . . . . . . . . . . . . Sentry 17 | . . . . 6 10 1 . . . . . . . . . . . . Heavy 1 | . . . . 1 . . . . . . . . . . . . . . Best Kill Streak 5 | . 4 . . 5 4 1 . 4 2 1 5 . . 5 1 . . . Combat Bots Only 5 | . 4 . . 5 4 1 . 4 2 . 5 . . 5 1 . . . Max Kills in Single Turn 3 | . 2 . . 2 2 1 . 1 1 1 2 . . 3 1 . . . Gunslinging . | . . . . . . . . . . . . . . . . . . . Exploded 3 | . 2 . . 1 . . . 1 . . 2 . . 3 . . . . Melee 1 | . . . . . . 1 . . . . . . . . 1 . . . Uniques/NPCs Destroyed . | . . . . . . . . . . . . . . . . . . . Combat | -11 -10 -10 -9 -8 -8 -7 -7 -7 -6 -5 -5 -5 -5 -4 -4 -4 -4 -3 -------- Run | Yrd Mat Min Mat Mat Sto Fac Was Fac Fac Fac Upp Upp Zhi Pro Fac Was Fac Res Hostile Shots Fired 1018 | . 30 . 80 209 196 48 2 33 150 43 30 2 . 96 18 3 3 75 Missed 354 | . 7 . 28 55 46 15 1 14 91 15 10 . . 46 5 . 2 19 Damage Taken 10755 | . 281 . 748 2234 2260 208 36 334 714 615 540 117 . 925 250 150 19 1324 Core 3863 | . 38 . 363 233 270 102 36 100 180 185 165 78 . 459 189 150 19 1296 Absorbed by Shields 46 | . . . . . . . . . . 46 . . . . . . . . Ignored by Resistances 184 | . . . . 184 . . . . . . . . . . . . . . Core Remaining (%) 53 | 100 . 84 9 . 8 . . 66 78 . . . . 11 . . 68 . Volleys Fired 258 | . 11 . 8 118 81 . . 10 14 . 6 . . 7 . 3 . . Largest 2 | . 2 . 1 2 2 . . 1 2 . 1 . . 2 . 1 . . Hottest 165 | . 90 . 20 130 165 . . 36 146 . 43 . . 70 . 35 . . Shots Fired 473 | . 22 . 8 235 162 . . 10 15 . 6 . . 12 . 3 . . Gun 179 | . 22 . 8 79 34 . . 9 14 . . . . 10 . 3 . . Cannon 280 | . . . . 151 128 . . . 1 . . . . . . . . . Launcher 14 | . . . . 5 . . . 1 . . 6 . . 2 . . . . Special . | . . . . . . . . . . . . . . . . . . . Kinetic 143 | . 2 . 8 77 34 . . 9 . . . . . 10 . 3 . . Thermal 307 | . 11 . . 153 128 . . . 15 . . . . . . . . . Explosive 8 | . . . . . . . . . . . 6 . . 2 . . . . Electromagnetic 15 | . 9 . . 5 . . . 1 . . . . . . . . . . Robot Hit Streak 22 | . 5 . 3 21 19 . . 11 22 . 4 . . 5 . 3 . . Robot Miss Streak 5 | . 2 . 1 5 3 . . . 1 . 1 . . 2 . . . . Penetration Max 1 | . . . . . . . . . . . . . . . . 1 . . Secondary Targets . | . . . . . . . . . . . . . . . . . . . Shots Hit Robots 322 | . 16 . 5 145 110 6 . 9 13 1 2 . . 9 3 3 . . Core Hits 171 | . 8 . 1 69 56 2 . 5 5 1 12 . . 9 2 1 . . Critical Kills 1 | . . . . . 1 . . . . . . . . . . . . . Critical Parts Destroyed 5 | . 1 . . . . . . 1 . . . . . 2 . 1 . . Critical Strikes 12 | . 2 . . . 1 1 . 1 2 . . . . 3 . 2 . . Burn 3 | . 1 . . . . . . . 2 . . . . . . . . . Meltdown 1 | . . . . . 1 . . . . . . . . . . . . . Destroy 6 | . 1 . . . . . . 1 . . . . . 2 . 2 . . Sever 2 | . . . . . . 1 . . . . . . . 1 . . . . Melee Attacks 28 | . . . . . . 6 . . 1 13 . . . 1 5 . . 2 Impact . | . . . . . . . . . . . . . . . . . . . Slashing 21 | . . . . . . 6 . . 1 13 . . . 1 . . . . Piercing 7 | . . . . . . . . . . . . . . . 5 . . 2 Sneak Attacks . | . . . . . . . . . . . . . . . . . . . Combat Hostiles . | . . . . . . . . . . . . . . . . . . . Follow-up Attacks . | . . . . . . . . . . . . . . . . . . . Damage Inflicted 8876 | . 248 . 40 3642 2899 190 . 228 235 43 661 . . 521 131 38 . . Guns 1776 | . 180 . 40 781 304 . . 160 221 . . . . 52 . 38 . . Cannons 5126 | . . . . 2551 2575 . . . . . . . . . . . . . Explosions 1504 | . 65 . . 282 . . . 68 . . 661 . . 428 . . . . Melee 405 | . . . . . . 190 . . . 43 . . . 41 131 . . . Ramming 65 | . 3 . . 28 20 . . . 14 . . . . . . . . . Kinetic 1353 | . 16 . 40 743 304 . . 160 . . . . . 52 . 38 . . Thermal 5552 | . 167 . . 2589 2575 . . . 221 . . . . . . . . . Explosive 1172 | . . . . 83 . . . . . . 661 . . 428 . . . . Electromagnetic 329 | . 62 . . 199 . . . 68 . . . . . . . . . . Impact . | . . . . . . . . . . . . . . . . . . . Slashing 274 | . . . . . . 190 . . . 43 . . . 41 . . . . Piercing 131 | . . . . . . . . . . . . . . . 131 . . . Highest Corruption 17 | . . . . . . . . . 1 15 15 16 16 17 . 8 8 . Average Corruption 14 | . . . . . . . . . 1 11 15 15 16 16 . 8 8 . Corruption Purged . | . . . . . . . . . . . . . . . . . . . Corruption Blocked . | . . . . . . . . . . . . . . . . . . . Effects 51 | . . . . . . . . . . 5 14 2 . 22 . 2 6 . Message Errors 13 | . . . . . . . . . . 1 4 . . 6 . . 2 . Matter Fused 11 | . . . . . . . . . . . 2 1 . 6 . 1 1 . Heat Flow Errors 4 | . . . . . . . . . . 1 1 . . 2 . . . . Energy Discharges 11 | . . . . . . . . . . 1 2 1 . 4 . 1 2 . Parts Rejected 1 | . . . . . . . . . . . . . . 1 . . . . Parts Fused 1 | . . . . . . . . . . . 1 . . . . . . . Data Loss (minor) 5 | . . . . . . . . . . 2 2 . . . . . 1 . Data Loss (major) 3 | . . . . . . . . . . . . . . 3 . . . . Alerts 1 | . . . . . . . . . . . 1 . . . . . . . Misdirections 1 | . . . . . . . . . . . 1 . . . . . . . Overload Shots . | . . . . . . . . . . . . . . . . . . . Overflow Damage 208 | . . . . 31 69 . . . 3 . 39 . . 66 . . . . Projectiles 99 | . . . . 30 69 . . . . . . . . . . . . . Explosions 109 | . . . . 1 . . . . 3 . 39 . . 66 . . . . Melee . | . . . . . . . . . . . . . . . . . . . Knockbacks . | . . . . . . . . . . . . . . . . . . . Impact . | . . . . . . . . . . . . . . . . . . . Kinetic . | . . . . . . . . . . . . . . . . . . . Secondary . | . . . . . . . . . . . . . . . . . . . Self-Inflicted Damage 174 | . 13 . . . . . . . 67 . 94 . . . . . . . Shots 5 | . 1 . . . . . . . 2 . 2 . . . . . . . Rammed 8 | . . . . 3 4 . . . 1 . . . . . . . . . Targets Rammed 12 | . 1 . . 6 4 . . . 1 . . . . . . . . . Kicked 3 | . . . . 3 . . . . . . . . . . . . . . Crushed 1 | . 1 . . . . . . . . . . . . . . . . . Highest Temperature 318 | . 285 . 3 301 233 . . . 63 136 318 . . 266 . . . . Average Temperature 78 | . 111 . 3 69 86 . . . 17 58 140 . . 116 . . . . Received Heat Transfer 3046 | . 135 . 261 828 1089 30 . 24 117 165 126 18 . 94 105 . . 54 Effects 4 | . . . . 1 . . . . . . 3 . . . . . . . Energy Bleed 1 | . . . . 1 . . . . . . . . . . . . . . Interference 3 | . . . . . . . . . . . 3 . . . . . . . Siege Activations . | . . . . . . . . . . . . . . . . . . . Robots Corrupted . | . . . . . . . . . . . . . . . . . . . Combat Hostiles . | . . . . . . . . . . . . . . . . . . . Parts Fried . | . . . . . . . . . . . . . . . . . . . Impact Corruptions . | . . . . . . . . . . . . . . . . . . . Robots Melted 2 | . . . . . 1 . . . 1 . . . . . . . . . Combat Hostiles 2 | . . . . . 1 . . . 1 . . . . . . . . . Parts Melted 18 | . 1 . . 8 9 . . . . . . . . . . . . . Heat Transferred 8627 | . 470 . . 4033 3495 . . . 629 . . . . . . . . . Parts Sabotaged . | . . . . . . . . . . . . . . . . . . . Parts Stolen . | . . . . . . . . . . . . . . . . . . . Parts Stripped . | . . . . . . . . . . . . . . . . . . . Power Chain Reactions 1 | . 1 . . . . . . . . . . . . . . . . . Alert | -11 -10 -10 -9 -8 -8 -7 -7 -7 -6 -5 -5 -5 -5 -4 -4 -4 -4 -3 ------- Run | Yrd Mat Min Mat Mat Sto Fac Was Fac Fac Fac Upp Upp Zhi Pro Fac Was Fac Res Peak Influence 613 | . 161 60 107 555 613 291 101 233 577 319 . . . . 226 94 63 93 Initial 256 | . . 60 23 44 222 256 101 63 55 196 . . . . 126 79 30 33 Average 243 | . 45 60 29 181 405 269 96 168 269 216 . . . . 164 63 42 57 Maximum Alert Level 2 | . . . . 2 2 1 . 1 2 1 . . . . 1 . . . Low Security (%) 46 | 100 100 100 100 66 . . 100 54 54 39 . . . . 71 100 100 100 Level 1 27 | . . . . 14 45 100 . 45 7 60 . . . . 28 . . . Level 2 26 | . . . . 18 54 . . . 37 . . . . . . . . . Level 3 . | . . . . . . . . . . . . . . . . . . . Level 4 . | . . . . . . . . . . . . . . . . . . . Level 5 . | . . . . . . . . . . . . . . . . . . . High Security . | . . . . . . . . . . . . . . . . . . . Max Security . | . . . . . . . . . . . . . . . . . . . Squads Dispatched 18 | . . . 2 6 2 . . 2 2 1 . . . . . . . 3 Investigation 4 | . . . 1 . . . . 1 1 1 . . . . . . . . Extermination . | . . . . . . . . . . . . . . . . . . . Reinforcement 13 | . . . 1 5 2 . . 1 1 . . . . . . . . 3 Assault 1 | . . . . 1 . . . . . . . . . . . . . . Garrison . | . . . . . . . . . . . . . . . . . . . Intercept . | . . . . . . . . . . . . . . . . . . . Searches Triggered 1 | . . . . . . . . . 1 . . . . . . . . . Construction Impeded 1 | . . . . 1 . . . . . . . . . . . . . . Haulers Reinforced . | . . . . . . . . . . . . . . . . . . . Active Scanning Responses . | . . . . . . . . . . . . . . . . . . . Cargo Convoy Interrupts . | . . . . . . . . . . . . . . . . . . . Stealth | -11 -10 -10 -9 -8 -8 -7 -7 -7 -6 -5 -5 -5 -5 -4 -4 -4 -4 -3 --------- Run | Yrd Mat Min Mat Mat Sto Fac Was Fac Fac Fac Upp Upp Zhi Pro Fac Was Fac Res Distress Signals 10 | . 3 . 1 2 2 . . . . 1 . . . . 1 . . . Communications Jammed . | . . . . . . . . . . . . . . . . . . . Distress Signals . | . . . . . . . . . . . . . . . . . . . Times Spotted 271 | . 9 . 18 59 37 1 6 12 34 23 12 1 . 33 8 6 1 11 Peak Tracking Total 11 | . 5 . 11 5 6 1 6 5 9 6 9 1 . 7 5 6 1 9 Tactical Retreats 38 | . 2 . 1 5 1 . . 3 6 3 3 1 . 8 3 . . 2 Traps | -11 -10 -10 -9 -8 -8 -7 -7 -7 -6 -5 -5 -5 -5 -4 -4 -4 -4 -3 ------- Run | Yrd Mat Min Mat Mat Sto Fac Was Fac Fac Fac Upp Upp Zhi Pro Fac Was Fac Res Traps Triggered 15 | . . . 1 . 4 1 . 1 . 3 1 1 . 2 1 . . . Indirectly . | . . . . . . . . . . . . . . . . . . . Trap Hack Attempts . | . . . . . . . . . . . . . . . . . . . Triggered . | . . . . . . . . . . . . . . . . . . . Disarmed . | . . . . . . . . . . . . . . . . . . . Reprogrammed . | . . . . . . . . . . . . . . . . . . . Reused . | . . . . . . . . . . . . . . . . . . . Traps Extracted . | . . . . . . . . . . . . . . . . . . . Installed . | . . . . . . . . . . . . . . . . . . . Triggered 1 | . . . . . . . . . . . . . . 1 . . . . Machines | -11 -10 -10 -9 -8 -8 -7 -7 -7 -6 -5 -5 -5 -5 -4 -4 -4 -4 -3 ---------- Run | Yrd Mat Min Mat Mat Sto Fac Was Fac Fac Fac Upp Upp Zhi Pro Fac Was Fac Res Machines Disabled 10 | . . . . 3 5 . . . 2 . . . . . . . . . Max in Single Turn 2 | . . . . 1 1 . . . 2 . . . . . . . . . Garrison Access 2 | . . . . . 1 . . 1 . . . . . . . . . . Machines Repaired . | . . . . . . . . . . . . . . . . . . . Machines Dismantled . | . . . . . . . . . . . . . . . . . . . Machines Sabotaged . | . . . . . . . . . . . . . . . . . . . Overloaded Fab Kills . | . . . . . . . . . . . . . . . . . . . Hacking | -11 -10 -10 -9 -8 -8 -7 -7 -7 -6 -5 -5 -5 -5 -4 -4 -4 -4 -3 --------- Run | Yrd Mat Min Mat Mat Sto Fac Was Fac Fac Fac Upp Upp Zhi Pro Fac Was Fac Res Machines Accessed 37 | . 1 . 3 5 7 . . 4 7 3 2 1 . . 3 . 1 . Terminals 28 | . 1 . 3 5 5 . . 3 4 3 . . . . 3 . 1 . Fabricators 3 | . . . . . . . . . 3 . . . . . . . . . Repair Stations . | . . . . . . . . . . . . . . . . . . . Recycling Units 1 | . . . . . 1 . . . . . . . . . . . . . Scanalyzers . | . . . . . . . . . . . . . . . . . . . Garrison Access 2 | . . . . . 1 . . 1 . . . . . . . . . . Total Hacks 99 | . 6 . 6 14 16 . . 11 12 22 2 1 . . 8 . 1 . Successful 53 | . 2 . 4 7 7 . . 5 6 12 2 1 . . 6 . 1 . Failed 46 | . 4 . 2 7 9 . . 6 6 10 . . . . 2 . . . Catastrophic 11 | . . . . 2 4 . . 1 1 1 . . . . 2 . . . Database Lockouts . | . . . . . . . . . . . . . . . . . . . Manual 37 | . . . . 1 2 . . 6 7 15 . . . . 5 . 1 . Terminals 84 | . 6 . 6 14 10 . . 10 7 22 . . . . 8 . 1 . Fabricators 5 | . . . . . . . . . 5 . . . . . . . . . Repair Stations . | . . . . . . . . . . . . . . . . . . . Recycling Units 4 | . . . . . 4 . . . . . . . . . . . . . Scanalyzers . | . . . . . . . . . . . . . . . . . . . Garrison Access 3 | . . . . . 2 . . 1 . . . . . . . . . . Terminal Hacks 46 | . 2 . 4 7 6 . . 4 2 12 2 1 . . 5 . 1 . Part Schematic 2 | . . . . . . . . . . 2 . . . . . . . . Prototype ID Bank 9 | . 1 . . 2 2 . . 1 . 3 . . . . . . . . Open Door 5 | . . . . . 2 . . . . . 2 1 . . . . . . Level Access Points 1 | . . . . . . . . . 1 . . . . . . . . . Branch Access Points 3 | . . . 1 . . . . 1 1 . . . . . . . . . Emergency Access Points 1 | . . . . 1 . . . . . . . . . . . . . . Terminal Index 3 | . . . . . . . . . . 2 . . . . 1 . . . Fabricator Index 2 | . . . . . . . . . . 1 . . . . 1 . . . Recycling Unit Index 1 | . . . . . . . . . . . . . . . 1 . . . Scanalyzer Index 1 | . . . . . 1 . . . . . . . . . . . . . Alert Level 3 | . . . . . . . . 1 . 1 . . . . 1 . . . Unreport Threat 2 | . . . . . . . . 1 . 1 . . . . . . . . Locate Traps 1 | . 1 . . . . . . . . . . . . . . . . . Dispatch Records 1 | . . . . . . . . . . 1 . . . . . . . . Security Status 1 | . . . 1 . . . . . . . . . . . . . . . Recall Investigation 1 | . . . . . . . . . . 1 . . . . . . . . Recall Reinforcements 2 | . . . . 2 . . . . . . . . . . . . . . Hauler Manifests 3 | . . . 1 1 . . . . . . . . . . 1 . . . Registered Components 1 | . . . 1 . . . . . . . . . . . . . . . Zone Layout 3 | . . . . 1 1 . . . . . . . . . . . 1 . Fabricator Hacks 3 | . . . . . . . . . 3 . . . . . . . . . Network Status 1 | . . . . . . . . . 1 . . . . . . . . . Build 2 | . . . . . . . . . 2 . . . . . . . . . Repair Station Hacks . | . . . . . . . . . . . . . . . . . . . Recycling Unit Hacks . | . . . . . . . . . . . . . . . . . . . Scanalyzer . | . . . . . . . . . . . . . . . . . . . Garrison Access Hacks 2 | . . . . . 1 . . 1 . . . . . . . . . . Seal Access 2 | . . . . . 1 . . 1 . . . . . . . . . . Unauthorized Hacks 2 | . . . . . . . . . 1 . . . . . 1 . . . Terminals 2 | . . . . . . . . . 1 . . . . . 1 . . . Assimilate 2 | . . . . . . . . . 1 . . . . . 1 . . . Fabricators . | . . . . . . . . . . . . . . . . . . . Repair Stations . | . . . . . . . . . . . . . . . . . . . Recycling Units . | . . . . . . . . . . . . . . . . . . . Scanalyzers . | . . . . . . . . . . . . . . . . . . . Garrison Access . | . . . . . . . . . . . . . . . . . . . Data Cores Recovered . | . . . . . . . . . . . . . . . . . . . Used . | . . . . . . . . . . . . . . . . . . . Hacking Detections 26 | . 1 . 2 5 4 . . 3 5 2 . . . . 3 . 1 . Full Trace Events 4 | . . . . . 1 . . 1 1 1 . . . . . . . . Feedback Events . | . . . . . . . . . . . . . . . . . . . Feedback Blocked . | . . . . . . . . . . . . . . . . . . . Robot Schematics Acquired . | . . . . . . . . . . . . . . . . . . . Robots Built 2 | . . . . . . . . . 2 . . . . . . . . . Authchips . | . . . . . . . . . . . . . . . . . . . Time 134 | . . . . . . . . . 134 . . . . . . . . . Total Robot Build Rating 8 | . . . . . . . . . 8 . . . . . . . . . Part Schematics Acquired 2 | . . . . . . . . . . 2 . . . . . . . . Parts Built 1 | . . . . . . . . . 1 . . . . . . . . . Authchips . | . . . . . . . . . . . . . . . . . . . Time 106 | . . . . . . . . . 106 . . . . . . . . . Total Part Build Rating 6 | . . . . . . . . . 6 . . . . . . . . . Parts Repaired . | . . . . . . . . . . . . . . . . . . . Time . | . . . . . . . . . . . . . . . . . . . Parts Recycled . | . . . . . . . . . . . . . . . . . . . Recycled Matter . | . . . . . . . . . . . . . . . . . . . Retrieved Matter . | . . . . . . . . . . . . . . . . . . . Retrieved Components . | . . . . . . . . . . . . . . . . . . . Parts Scanalyzed . | . . . . . . . . . . . . . . . . . . . Part Schematics Acquired . | . . . . . . . . . . . . . . . . . . . Parts Damaged . | . . . . . . . . . . . . . . . . . . . Bothacking | -11 -10 -10 -9 -8 -8 -7 -7 -7 -6 -5 -5 -5 -5 -4 -4 -4 -4 -3 ------------ Run | Yrd Mat Min Mat Mat Sto Fac Was Fac Fac Fac Upp Upp Zhi Pro Fac Was Fac Res Used RIF Installer . | . . . . . . . . . . . . . . . . . . . Robots Hacked . | . . . . . . . . . . . . . . . . . . . Non-combat . | . . . . . . . . . . . . . . . . . . . Combat . | . . . . . . . . . . . . . . . . . . . Robot Hacks Applied . | . . . . . . . . . . . . . . . . . . . Relay Couplers Released . | . . . . . . . . . . . . . . . . . . . Fabnet Peak Effective % . | . . . . . . . . . . . . . . . . . . . Robots Rewired . | . . . . . . . . . . . . . . . . . . . Allies Hacked . | . . . . . . . . . . . . . . . . . . . Hacks Repelled . | . . . . . . . . . . . . . . . . . . . Allies | -11 -10 -10 -9 -8 -8 -7 -7 -7 -6 -5 -5 -5 -5 -4 -4 -4 -4 -3 -------- Run | Yrd Mat Min Mat Mat Sto Fac Was Fac Fac Fac Upp Upp Zhi Pro Fac Was Fac Res Total Allies 5 | . . . . . . . . . 3 . . . . . 1 1 . . Largest Group 2 | . . . . . . . . . 2 . . . . . 1 1 . . Highest-Rated Group 64 | . . . . . . . . . 64 . . . . . 10 46 . . Highest-Rated Ally 46 | . . . . . . . . . 32 . . . . . 10 46 . . Total Orders . | . . . . . . . . . . . . . . . . . . . Ally Attacks 11 | . . . . . . . . . 5 . . . . . . 6 . . Total Damage 359 | . . . . . . . . . 228 . . . . . . 131 . . Kills 1 | . . . . . . . . . 1 . . . . . . . . . Allies Corrupted . | . . . . . . . . . . . . . . . . . . . Allies Melted 1 | . . . . . . . . . 1 . . . . . . . . . Intel | -11 -10 -10 -9 -8 -8 -7 -7 -7 -6 -5 -5 -5 -5 -4 -4 -4 -4 -3 ------- Run | Yrd Mat Min Mat Mat Sto Fac Was Fac Fac Fac Upp Upp Zhi Pro Fac Was Fac Res Robot Analysis Total . | . . . . . . . . . . . . . . . . . . . Derelict Logs Recovered 4 | . . . . . . . . . . . 3 . . 1 . . . . Drone Launches . | . . . . . . . . . . . . . . . . . . . Drone Recoveries . | . . . . . . . . . . . . . . . . . . . Exploration | -11 -10 -10 -9 -8 -8 -7 -7 -7 -6 -5 -5 -5 -5 -4 -4 -4 -4 -3 ------------- Run | Yrd Mat Min Mat Mat Sto Fac Was Fac Fac Fac Upp Upp Zhi Pro Fac Was Fac Res Turns Passed 9031 | 67 200 26 231 3279 2570 157 97 204 366 383 299 91 1 565 166 57 165 107 Spaces Moved 7283 | 37 96 17 322 928 666 214 133 505 935 945 728 202 3 740 233 85 301 193 Core 1149 | 4 . . 137 . 1 . 89 29 . . . . . 146 192 57 301 193 Treads 1506 | 33 96 17 43 652 665 . . . . . . . . . . . . . Legs 183 | . . . . 183 . . . . . . . . . . . . . . Wheels . | . . . . . . . . . . . . . . . . . . . Hover 69 | . . . . . . . . . . . . . . . 41 28 . . Flight 4376 | . . . 142 93 . 214 44 476 935 945 728 202 3 594 . . . . Fastest Speed 26 | 50 160 160 34 35 325 32 35 26 28 30 34 34 34 32 50 50 50 50 Average Speed 103 | 148 160 160 61 301 334 48 67 30 30 32 35 34 34 51 60 56 50 50 Slowest Speed 1800 | 160 160 160 250 410 1800 195 115 100 32 35 40 34 34 275 110 70 50 50 Overloaded Moves . | . . . . . . . . . . . . . . . . . . . Propulsion Burnouts . | . . . . . . . . . . . . . . . . . . . Robots Hopped 77 | . . . 18 1 . 1 4 6 21 14 6 . . 6 . . . . Cave-ins Triggered 1 | . . . . . . . . . . 1 . . . . . . . . Exploration Rate (%) 38 | 4 25 9 26 76 96 7 80 21 32 23 87 40 7 93 6 77 6 7 Regions Visited 18 Branch Regions 6 Pre-discovered Areas 1 | . . . . . . . . . . . 1 . . . . . . . Known Exits Taken 4 | . . . . 1 1 . . . 1 . . . . . . . 1 . Unknown Exits Taken 10 | 1 1 1 1 . . . . 1 . 1 1 1 1 1 . . . . Scrap Searched 4 | . . . . . . . . . . . 2 1 . 1 . . . . Spaces Dug 10 | . . . . . . . . . . 10 . . . . . . . . Terrain Destroyed 227 | . 1 . . 47 26 . . . 29 10 79 . . 35 . . . . Melee 10 | . . . . . . . . . . 10 . . . . . . . . Projectile 42 | . . . . 16 26 . . . . . . . . . . . . . AOE 175 | . 1 . . 31 . . . . 29 . 79 . . 35 . . . . Terrain Rammed . | . . . . . . . . . . . . . . . . . . . Walls Destroyed . | . . . . . . . . . . . . . . . . . . . Machines Disabled . | . . . . . . . . . . . . . . . . . . . Actions | -11 -10 -10 -9 -8 -8 -7 -7 -7 -6 -5 -5 -5 -5 -4 -4 -4 -4 -3 --------- Run | Yrd Mat Min Mat Mat Sto Fac Was Fac Fac Fac Upp Upp Zhi Pro Fac Was Fac Res Total 8194 | 46 120 16 326 1191 839 269 137 539 978 985 756 227 2 908 251 91 314 199 Wait 328 | . 10 . 1 38 38 11 . 12 12 4 23 14 . 148 3 . 13 1 Move 7125 | 36 96 16 289 925 665 212 126 492 893 918 715 201 2 729 233 84 300 193 Hop 66 | . . . 14 1 . 1 2 6 21 11 6 . . 4 . . . . Pick Up 98 | 4 . . 2 37 16 3 1 5 10 7 1 6 . 1 3 1 1 . Fast Attach 78 | 6 1 . 8 21 6 1 1 7 12 6 3 . . 3 1 . . 2 Attach 61 | . 1 . . 10 7 9 . 5 4 10 . 2 . 6 5 1 . 1 Detach 15 | . . . 1 . 2 4 . . . 2 . . . 4 . 2 . . Swap 17 | . . . . 8 2 1 1 . 2 1 . . . 2 . . . . Drop 93 | . 1 . 3 27 12 21 6 2 9 2 2 4 . 3 1 . . . Fire 258 | . 11 . 8 118 81 . . 10 14 . 6 . . 7 . 3 . . Melee 28 | . . . . . . 6 . . 1 13 . . . 1 5 . . 2 Ram . | . . . . . . . . . . . . . . . . . . . Kick 3 | . . . . 3 . . . . . . . . . . . . . . Crush 7 | . . . . 3 4 . . . . . . . . . . . . . Escape Stasis 17 | . . . . . 6 . . . . 11 . . . . . . . . Rewire . | . . . . . . . . . . . . . . . . . . . Trap . | . . . . . . . . . . . . . . . . . . . Miscellaneous . | . . . . . . . . . . . . . . . . . . . Route ------- -11/Scrapyard -10/Materials -10/Mines -9/Materials (discovered 2 exits: *Mat / Min) -8/Materials (discovered 4 exits: *Fac x3 / *Sto) -8/Storage (discovered 2 exits: *Fac / [*Rec]) -7/Factory -7/Waste -7/Factory (discovered 3 exits: *Fac / Low x2) -6/Factory (discovered 6 exits: *Fac x4 / Low x2) -5/Factory -5/Upper Caves -5/Upper Caves -5/Zhirov -4/Proximity Caves -4/Factory -4/Waste -4/Factory -3/Research History --------- Turn | Location | Event 7 | -11/Scrapyard | Discovered new exit (range 15) 68 | -11/Scrapyard | Entered Materials 169 | -10/Materials | Discovered new exit (range 7) 268 | -10/Materials | Entered Mines 275 | -10/Mines | Discovered new exit (range 15) 294 | -10/Mines | Entered Materials 294 | -9/Materials | Evolved 2 slots: Utility x2 314 | -9/Materials | Build established: Mutant 408 | -9/Materials | Identified exit to Mines 414 | -9/Materials | Lost 3 parts (1p1n1w) 416 | -9/Materials | Core integrity fell below 50% 516 | -9/Materials | Core integrity fell below 20% 524 | -9/Materials | Discovered new exit (range 4) 525 | -9/Materials | Entered another Materials area 525 | -8/Materials | Evolved 2 slots: Utility x2 1348 | -8/Materials | Discovered new exit (range 4) 1552 | -8/Materials | Identified exit to Factory 2361 | -8/Materials | Discovered exit to Factory (range 14) 3310 | -8/Materials | Discovered exit to Factory (range 7) 3318 | -8/Materials | Discovered new exit (range 14) 3431 | -8/Materials | Identified exit to Storage 3725 | -8/Materials | First assault squad dispatched 3804 | -8/Materials | Entered Storage 3955 | -8/Storage | Core integrity fell below 50% 3989 | -8/Storage | Lost 5 parts (1p2u2w) 4490 | -8/Storage | Discovered new exit (range 6) 4529 | -8/Storage | Used back door to open Recycling access 6073 | -8/Storage | Core integrity fell below 20% 6325 | -8/Storage | Discovered exit to Factory (range 15) 6374 | -8/Storage | Entered Factory 6374 | -7/Factory | Evolved 2 slots: Propulsion x2 6531 | -7/Factory | Sucked down chute 6531 | -7/Factory | Entered Waste 6541 | -7/Waste | Spotted C-40 Crusher 6542 | -7/Waste | Spotted C-40 Crusher 6559 | -7/Waste | Spotted C-40 Crusher 6561 | -7/Waste | Spotted C-40 Crusher 6580 | -7/Waste | Spotted C-40 Crusher 6580 | -7/Waste | Crushed by Compactor (1 part destroyed, 2 dropped) 6592 | -7/Waste | Spotted C-40 Crusher 6622 | -7/Waste | Discovered new exit (range 13) 6628 | -7/Waste | Entered Factory 6711 | -7/Factory | Lost 4 parts (1n2u1w) 6808 | -7/Factory | Identified exit to Lower Caves 6821 | -7/Factory | Discovered new exit (range 5) 6832 | -7/Factory | Entered another Factory area 6832 | -6/Factory | Evolved 2 slots: Propulsion x1, Utility x1 6863 | -6/Factory | Discovered new exit (range 19) 6981 | -6/Factory | Fabricated Y-54 Guardian? 7080 | -6/Factory | Fabricated Imp. Component Analysis Suite? 7173 | -6/Factory | Identified exit to Lower Caves 7173 | -6/Factory | Identified exit to Factory 7182 | -6/Factory | Search patrols dispatched 7198 | -6/Factory | Entered another Factory area 7198 | -5/Factory | Evolved 2 slots: Utility x2 7228 | -5/Factory | Lost 4 parts (1p1n2u) 7437 | -5/Factory | Crushed by falling debris 7438 | -5/Factory | System corruption reached 10% 7468 | -5/Factory | Lost 5 parts (1p1n2u1w) 7494 | -5/Factory | Discovered new exit (range 8) 7581 | -5/Factory | Entered Upper Caves 7671 | -5/Upper Caves | Learned location of 1 exit from Factory 7684 | -5/Upper Caves | Learned location of Armory (-3) 7740 | -5/Upper Caves | Build established: Hacker-Mutant 7748 | -5/Upper Caves | Learned Factory security intel 7767 | -5/Upper Caves | Attracted the attention of an 0b10 checkpoint 7812 | -5/Upper Caves | Lost 3 parts (1p1n1u) 7879 | -5/Upper Caves | Discovered new exit (range 5) 7880 | -5/Upper Caves | Entered another Upper Caves area 7969 | -5/Upper Caves | Discovered new exit (range 5) 7971 | -5/Upper Caves | Entered Zhirov 7971 | -5/Zhirov | Discovered new exit (range 3) 7972 | -5/Zhirov | Entered Proximity Caves 8129 | -4/Proximity Caves | Core integrity fell below 50% 8174 | -4/Proximity Caves | Lost 5 parts (1p1n3u) 8521 | -4/Proximity Caves | Spotted B-86 Titan 8523 | -4/Proximity Caves | Core integrity fell below 20% 8532 | -4/Proximity Caves | Discovered new exit (range 12) 8537 | -4/Proximity Caves | Entered Factory 8537 | -4/Factory | Evolved 2 slots: Power x1, Propulsion x1 8538 | -4/Factory | Identified exit to Research 8703 | -4/Factory | Sucked down chute 8703 | -4/Factory | Entered Waste 8704 | -4/Waste | Met a frightened Derelict 8713 | -4/Waste | Spotted C-40 Crusher 8714 | -4/Waste | Spotted C-40 Crusher 8715 | -4/Waste | Spotted C-40 Crusher 8718 | -4/Waste | EMP discharged 8721 | -4/Waste | Crushed by Compactor (1 part destroyed, 2 dropped) 8722 | -4/Waste | Crushed by Compactor (1 part destroyed, 2 dropped) 8722 | -4/Waste | Spotted C-40 Crusher 8731 | -4/Waste | Crushed by Compactor (1 part destroyed, 2 dropped) 8733 | -4/Waste | Spotted C-40 Crusher 8747 | -4/Waste | Spotted C-40 Crusher 8755 | -4/Waste | Discovered new exit (range 12) 8760 | -4/Waste | Entered Factory 8760 | -4/Factory | Discovered exit to Research (range 21) 8762 | -4/Factory | Lost 3 parts (2u1w) 8925 | -4/Factory | Entered Research 8925 | -3/Research | Evolved 2 slots: Utility x2 8990 | -3/Research | Core integrity fell below 50% 9008 | -3/Research | Core integrity fell below 20% 9016 | -3/Research | Build established: Mutant 9032 | -3/Research | Self-destructed Last Messages --------------- 08979_ Enh. Optical Array severed. 08982_ Penetrated by Slug. 08982_ Slug penetrates Wall. 08986_ Penetrated by Slug. 08986_ Slug penetrates C-35 Carver. 08986_ C-35 Carver destroyed. 08987_ Acquired 28 matter. 08990_ Kinetic Spear severed. 08991_ Acquired Kinetic Spear. 08993_ Kinetic Spear severed. 08994_ Slug penetrates Research Mainframe. 08994_ Penetrated by Slug. 08994_ Slug penetrates Research Mainframe. 08994_ Research Mainframe disabled. 08995_ Acquired Kinetic Spear. 08996_ Kinetic Spear severed. 08996_ Penetrated by Slug. 09011_ H-71 Marshal calls for reinforcements. 09011_ ALERT: Suspicious intruders detected, dispatching Specialist reinforcements to area. Map ----- +----------------------------------------------------+ | ?????????????????????????????????????????????????? | | ?????????????????????????????????????????????????? | | ?????????????????????????????????????????????????? | | ?????????????????????????????????????????????????? | | ?????????????????????????????????????????????????? | | ?????????????????????????????????????????????????? | | ?????????????????????????????????????????????????? | | ?????????????????????????????????????????????????? | | ??????????????????????? ????????????????????????? | | ??????????????????????? ????????????????????????? | | ??????????????????????? ????????????????????????? | | ???????????????????????/#????????????????????????? | | ??????????????????????? #????????????????????????? | | ???????????????????#### #????????????????????????? | | ??????????????????? +????????????????????????? | | ???????????????????# #????????????????????????? | | ???????????????????# #????????????????????????? | | ???????????????????+ +????????????????????????? | | ???????????????????# #????????????????????????? | | ???????????????????# ###??????????????????????? | | ???????????????????# ???????????????????????? | | ???????????????????# #????????????????????????? | | ???????????????????# #????????????????????????? | | ???????????????????# #????????????????????????? | | ????????##########?# ##+########?????????????????? | | ????????# "" ### ## c@ #?????????????????? | | ????????# ""S + ## k #?????????????????? | | ????????# "" # ## #?????????????????? | | ????????# ! # ## """#?????????????????? | | ????????# ! + + t """#?????????????????? | | ????????# ###### """#?????????????????? | | ????????# #????# #?????????????????? | | ????????# #????# #?????????????????? | | ????????# #????# #?????????????????? | | #############+#############+####?????????????????? | | ?????????????????????? | | ?????????????????????? | | ?????????????????????? | | ??????????????????????? | | ######+######+#############??????????????????????? | | #????????????????????????????????????????? | | #????????????????????????????????????????? | | """"" #????????????????????????????????????????? | | """"" #????????????????????????????????????????? | | """"" #????????????????????????????????????????? | | #????????????????????????????????????????? | | #????????????????????????????????????????? | | #????????????????????????????????????????? | | ########################?????????????????????????? | | ????????????????????????? | +----------------------------------------------------+ Best States ------------- Heat Dissipation 56 Energy Generation 18 Energy Capacity 290 Matter Stores 300 Matter Capacity 300 Sight Range 22 Terrain Scan Density 10 Jamming Range 14 Additional Mass Support 12 Armor Coverage 600 Resistance: KI 30 Phase Shifting 5 Evasion (%) 68 Targeting Accuracy 11 Melee Accuracy 5 Target Analysis 12 Core Analysis 9 Armor Integrity Analysis 30 Recoil Reduction 2 Offensive Hacking 36 Defensive Hacking 34 Item Schematics ----------------- Cld. VTOL Module | -5/Factory | Hacked Imp. Reaction Control System | -5/Factory | Hacked Robot Schematics ------------------ None Fabricated ------------ Y-54 Guardian | x2 | -6/Factory | Preloaded Imp. Component Analysis Suite | x1 | -6/Factory | Preloaded Alien Tech Used ----------------- None Achievements -------------- Below Challenges ------------ None Game ------ Seed ParticleMatterSteel Manual? 0 Play Time 01:32:17 Cumulative 65.5 hours Start 2024.06.24 @ 00:07:32 End 2024.06.24 @ 01:38:01 Sessions 1 Manual Loads 0 Difficulty Rogue Special Mode None Game No. 83 Rogue 81 Adventurer 0 Explorer 2 Win Type - Total 5 Types 3/0/0/2/0/0/0/0/0 Lore% 33 Gallery% 58 Achievement% 47 Wizard Run 0 Options --------- Layout 0 ASCII 0 Keyboard 0 Movement Numpad Keybinds 0 Fullscreen 2 Font 18/SmallcapsGlow Map View 76x50 Zoom Use 0% Tactical HUD 1 Map Filters NONE Filters NONE Steam 1 RUN: 33c8ba00-8f60-448c-bfb9-0c8cf965dc39